Workbook

Sheet Sheet1
A1: 2022-2023学年人文与公共管理学院国家励志奖学金评定表
A2: 序号 | B2: 班级 | C2: 姓名 | D2: 贫困等级 | E2: 贫困等级赋分 | F2: 贫困等级最终测评分 | G2: 综测上 | H2: 综测下 | I2: 综测平均分 | J2: 综测最终测评分 | K2: 励志奖学金总测评分 | L2: 备注
A3: 1 | B3: 法学2001 | C3: 蔡昊霖 | D3: 特别困难 | E3: 90 | F3: 36 | G3: 88.998 | H3: 86.320 | I3: =AVERAGE(G3:H3) -> 87.659 | J3: =I3*0.6 -> 52.595 | K3: =F3+J3 -> 88.595 | L3: 拟推荐
A4: 2 | B4: 法学2001 | C4: 葛友勤 | D4: 特别困难 | E4: 90 | F4: 36 | G4: 86.706 | H4: 85.315 | I4: =AVERAGE(G4:H4) -> 86.010 | J4: =I4*0.6 -> 51.606 | K4: =F4+J4 -> 87.606 | L4: 拟推荐
A5: 3 | B5: 法学2001 | C5: 魏俊 | D5: 特别困难 | E5: 90 | F5: 36 | G5: 84.517 | H5: 84.195 | I5: =AVERAGE(G5:H5) -> 84.356 | J5: =I5*0.6 -> 50.614 | K5: =F5+J5 -> 86.614
A6: 4 | B6: 法学2002 | C6: 马晴 | D6: 特别困难 | E6: 90 | F6: 36 | G6: 84.258 | H6: 83.275 | I6: =(G6+H6)/2 -> 83.767 | J6: =I6*0.6 -> 50.260 | K6: =F6+J6 -> 86.260 | L6: 拟推荐
A7: 5 | B7: 法学2002 | C7: 黄金铃 | D7: 困难 | E7: 70 | F7: 28 | G7: 89.792 | H7: 84.830 | I7: =(G7+H7)/2 -> 87.311 | J7: =I7*0.6 -> 52.387 | K7: =F7+J7 -> 80.387 | L7: 拟推荐
A8: 6 | B8: 公管2001 | C8: 彭海玉 | D8: 特别困难 | E8: 90 | F8: 36 | G8: 85.661 | H8: 89.660 | I8: 87.661 | J8: 52.597 | K8: 88.597 | L8: 拟推荐
A9: 7 | B9: 公管2001 | C9: 张娟 | D9: 困难 | E9: 70 | F9: 28 | G9: 89.702 | H9: 88.347 | I9: 89.025 | J9: 53.415 | K9: 81.415 | L9: 拟推荐
A10: 8 | B10: 公管2001 | C10: 朱佳敏 | D10: 困难 | E10: 70 | F10: 28 | G10: 85.269 | H10: 86.029 | I10: 85.649 | J10: 51.389 | K10: 79.389
A11: 9 | B11: 公管2001 | C11: 袁丽 | D11: 困难 | E11: 70 | F11: 28 | G11: 85.623 | H11: 85.306 | I11: 85.465 | J11: 51.279 | K11: 79.279
A12: 10 | B12: 公管2002 | C12: 魏倩 | D12: 特别困难 | E12: 90 | F12: 36 | G12: 88.446 | H12: 86.727 | I12: 87.586 | J12: 52.552 | K12: 88.552 | L12: 拟推荐
A13: 11 | B13: 公管2002 | C13: 邱紫君 | D13: 困难 | E13: 70 | F13: 28 | G13: 86.894 | H13: 90.722 | I13: 88.808 | J13: 53.285 | K13: 81.285 | L13: 拟推荐
A14: 12 | B14: 公管2002 | C14: 周海龙 | D14: 困难 | E14: 70 | F14: 28 | G14: 84.321 | H14: 83.455 | I14: 83.888 | J14: 50.333 | K14: 78.333
A15: 13 | B15: 文学2001 | C15: 李文静 | D15: 特别困难 | E15: 90 | F15: 36 | G15: 88.440 | H15: 87.222 | I15: 87.831 | J15: 52.698 | K15: 88.700 | L15: 拟推荐
A16: 14 | B16: 文学2001 | C16: 徐翰林 | D16: 特别困难 | E16: 90 | F16: 36 | G16: 86.508 | H16: 88.984 | I16: 87.746 | J16: 52.650 | K16: 88.650 | L16: 拟推荐
A17: 15 | B17: 文学2002 | C17: 曹乃馨 | D17: 特别困难 | E17: 90 | F17: 36 | G17: 87.910 | H17: 83.790 | I17: =(G17+H17)/2 -> 85.850 | J17: =I17*0.6 -> 51.510 | K17: =F17+J17 -> 87.510 | L17: 拟推荐
A18: 16 | B18: 文学2002 | C18: 陈思思 | D18: 特别困难 | E18: 90 | F18: 36 | G18: 85.350 | H18: 84.370 | I18: =(G18+H18)/2 -> 84.860 | J18: =I18*0.6 -> 50.916 | K18: =F18+J18 -> 86.916 | L18: 拟推荐
A19: 17 | B19: 文学2002 | C19: 罗佳 | D19: 特别困难 | E19: 90 | F19: 36 | G19: 83.590 | H19: 82.620 | I19: =(G19+H19)/2 -> 83.105 | J19: =I19*0.6 -> 49.863 | K19: =F19+J19 -> 85.863
A20: 18 | B20: 文学2002 | C20: 冷艺超 | D20: 特别困难 | E20: 90 | F20: 36 | G20: 82.870 | H20: 83.270 | I20: =(G20+H20)/2 -> 83.070 | J20: =I20*0.6 -> 49.842 | K20: =F20+J20 -> 85.842
A21: 19 | B21: 文学2002 | C21: 吴驰宇 | D21: 特别困难 | E21: 90 | F21: 36 | G21: 82.650 | H21: 82.720 | I21: =(G21+H21)/2 -> 82.685 | J21: =I21*0.6 -> 49.611 | K21: =F21+J21 -> 85.611
A22: 20 | B22: 音学2001 | C22: 王溪悦 | D22: 困难 | E22: 70 | F22: 28 | G22: 83.300 | H22: 83.282 | I22: 83.290 | J22: 49.974 | K22: 77.970 | L22: 拟推荐
A23: 21 | B23: 音学2001 | C23: 张贻娟 | D23: 困难 | E23: 70 | F23: 28 | G23: 81.984 | H23: 82.880 | I23: =(G23+H23)/2 -> 82.432 | J23: =I23*0.6 -> 49.459 | K23: =F23+J23 -> 77.459
A24: 22 | B24: 音学2002 | C24: 周旭丹 | D24: 困难 | E24: 70 | F24: 28 | G24: 89.320 | H24: 91.100 | I24: 90.210 | J24: 54.130 | K24: 82.130 | L24: 拟推荐
A25: 23 | B25: 音学2002 | C25: 黄敏 | D25: 困难 | E25: 70 | F25: 28 | G25: 88.720 | H25: 86.320 | I25: 87.520 | J25: 52.510 | K25: 80.510
A26: 24 | B26: 法学2101 | C26: 谭敏欣 | D26: 特别困难 | E26: 90 | F26: 36 | G26: 86.466 | H26: 81.771 | I26: =AVERAGE(G26:H26) -> 84.119 | J26: =I26*0.6 -> 50.471 | K26: =J26+F26 -> 86.471 | L26: 拟推荐
A27: 25 | B27: 法学2101 | C27: 程艳 | D27: 困难 | E27: 70 | F27: 28 | G27: 87.512 | H27: 88.974 | I27: =AVERAGE(G27:H27) -> 88.243 | J27: =I27*0.6 -> 52.946 | K27: =J27+F27 -> 80.946 | L27: 拟推荐
A28: 26 | B28: 法学2101 | C28: 邹慧 | D28: 困难 | E28: 70 | F28: 28 | G28: 90.079 | H28: 86.324 | I28: 88.202 | J28: 52.921 | K28: 80.921
A29: 27 | B29: 法学2101 | C29: 刘思语 | D29: 困难 | E29: 70 | F29: 28 | G29: 85.200 | H29: 83.962 | I29: 84.581 | J29: 50.748 | K29: 78.748
A30: 28 | B30: 法学2102 | C30: 龚佳丽 | D30: 特别困难 | E30: 90 | F30: 36 | G30: 87.108 | H30: 87.738 | I30: 87.423 | J30: 52.452 | K30: 88.450 | L30: 拟推荐
A31: 29 | B31: 法学2102 | C31: 刘薇 | D31: 特别困难 | E31: 90 | F31: 36 | G31: 84.358 | H31: 86.072 | I31: 85.215 | J31: 51.132 | K31: 87.130 | L31: 拟推荐
A32: 30 | B32: 法学2102 | C32: 胡玉琴 | D32: 困难 | E32: 70 | F32: 28 | G32: 85.570 | H32: 87.629 | I32: 86.600 | J32: 51.960 | K32: 79.960
A33: 31 | B33: 公管2101 | C33: 康忠怡 | D33: 特别困难 | E33: 90 | F33: 36 | G33: 86.655 | H33: 86.332 | I33: 86.494 | J33: =I33*0.6 -> 51.896 | K33: =J33+F33 -> 87.896 | L33: 拟推荐
A34: 32 | B34: 公管2101 | C34: 曾姗 | D34: 困难 | E34: 70 | F34: 28 | G34: 89.666 | H34: 85.944 | I34: 87.805 | J34: 52.683 | K34: =J34+F34 -> 80.683
A35: 33 | B35: 公管2101 | C35: 杜敏 | D35: 困难 | E35: 70 | F35: 28 | G35: 88.905 | H35: 86.272 | I35: 87.588 | J35: 52.553 | K35: =J35+F35 -> 80.553
A36: 34 | B36: 公管2102 | C36: 杨燔 | D36: 特别困难 | E36: 90 | F36: =E36*0.4 -> 36 | G36: 86.578 | H36: 86.265 | I36: 86.422 | J36: 51.853 | K36: =F36+J36 -> 87.853 | L36: 拟推荐
A37: 35 | B37: 公管2102 | C37: 李毅辉 | D37: 困难 | E37: 70 | F37: =E37*0.4 -> 28 | G37: 88.072 | H37: 92.093 | I37: 90.082 | J37: 54.049 | K37: =F37+J37 -> 82.049 | L37: 拟推荐
A38: 36 | B38: 公管2102 | C38: 李若菲 | D38: 困难 | E38: 70 | F38: 28 | G38: 86.159 | H38: 87.218 | I38: 86.689 | J38: 52.013 | K38: =F38+J38 -> 80.013
A39: 37 | B39: 文学2101 | C39: 郑梦佳 | D39: 特别困难 | E39: 90 | F39: 36 | G39: 88.640 | H39: 84.480 | I39: 86.560 | J39: 51.936 | K39: =F39+J39 -> 87.936 | L39: 拟推荐
A40: 38 | B40: 文学2101 | C40: 刘鸾鸾 | D40: 困难 | E40: 70 | F40: 28 | G40: 84.794 | H40: 87.414 | I40: 86.104 | J40: 51.662 | K40: =F40+J40 -> 79.662 | L40: 拟推荐
A41: 39 | B41: 文学2102 | C41: 王月燕 | D41: 特别困难 | E41: 90 | F41: 36 | G41: 92.408 | H41: 88.980 | I41: 90.694 | J41: 54.410 | K41: 90.410 | L41: 拟推荐
A42: 40 | B42: 文学2102 | C42: 邱淑慧 | D42: 特别困难 | E42: 90 | F42: 36 | G42: 91.590 | H42: 86.814 | I42: =AVERAGE(G42:H42) -> 89.202 | J42: =I42*0.6 -> 53.521 | K42: =F42+J42 -> 89.521 | L42: 拟推荐
A43: 41 | B43: 音学2101 | C43: 黄熙 | D43: 特别困难 | E43: 90 | F43: 36 | G43: 83.866 | H43: 83.286 | I43: 83.576 | J43: 50.146 | K43: 86.146 | L43: 拟推荐
A44: 42 | B44: 音学2102 | C44: 何政吾 | D44: 特别困难 | E44: 90 | F44: 36 | G44: 84.585 | H44: 85.059 | I44: 84.822 | J44: =I44*0.6 -> 50.893 | K44: =F44+J44 -> 86.893 | L44: 拟推荐
A45: 43 | B45: 音学2102 | C45: 陈旭辉 | D45: 困难 | E45: 70 | F45: 28 | G45: 81.541 | H45: 82.471 | I45: 82.006 | J45: =I45*0.6 -> 49.204 | K45: =F45+J45 -> 77.204
A46: 44 | B46: 法学2201 | C46: 黄淇 | D46: 特别困难 | E46: 90 | F46: =E46*0.4 -> 36 | G46: 82.651 | H46: 86.120 | I46: 84.390 | J46: =I46*0.6 -> 50.634 | K46: =F46+J46 -> 86.634 | L46: 拟推荐
A47: 45 | B47: 法学2201 | C47: 叶佳轩 | D47: 特别困难 | E47: 90 | F47: 36 | G47: 80.876 | H47: 84.540 | I47: 82.706 | J47: 49.623 | K47: 85.623 | L47: 拟推荐
A48: 46 | B48: 法学2201 | C48: 胡晨悦 | D48: 特别困难 | E48: 90 | F48: 36 | G48: 81.674 | H48: 82.470 | I48: 82.072 | J48: 49.243 | K48: 85.243
A49: 47 | B49: 法学2201 | C49: 陈雨婷 | D49: 困难 | E49: 70 | F49: 28 | G49: 81.790 | H49: 85.060 | I49: 83.427 | J49: 50.056 | K49: 78.056
A50: 48 | B50: 法学2201 | C50: 吴镕燕 | D50: 困难 | E50: 70 | F50: 28 | G50: 81.348 | H50: 82.570 | I50: 81.960 | J50: 49.176 | K50: 77.176
A51: 49 | B51: 法学2201 | C51: 柯妍 | D51: 困难 | E51: 70 | F51: 28 | G51: 81.077 | H51: 81.140 | I51: 81.110 | J51: 48.666 | K51: 76.666
A52: 50 | B52: 法学2202 | C52: 段雨欣 | D52: 特别困难 | E52: 90 | F52: 36 | G52: 82.830 | H52: 85.466 | I52: 84.148 | J52: 50.489 | K52: 86.489 | L52: 拟推荐
A53: 51 | B53: 法学2202 | C53: 张俊茜 | D53: 特别困难 | E53: 90 | F53: 36 | G53: 80.484 | H53: 85.884 | I53: 83.184 | J53: 49.910 | K53: 85.910 | L53: 拟推荐
A54: 52 | B54: 法学2202 | C54: 严淑萍 | D54: 困难 | E54: 70 | F54: 28 | G54: 82.426 | H54: 82.406 | I54: 86.140 | J54: 51.684 | K54: 79.684
A55: 53 | B55: 公管2201 | C55: 周若妍 | D55: 特别困难 | E55: 90 | F55: 36 | G55: 81.978 | H55: 84.760 | I55: =(G55+H55)/2 -> 83.369 | J55: =I55*0.6 -> 50.021 | K55: =F55+J55 -> 86.021 | L55: 拟推荐
A56: 54 | B56: 公管2201 | C56: 谢嘉仪 | D56: 特别困难 | E56: 90 | F56: 36 | G56: 81.984 | H56: 83.020 | I56: =(G56+H56)/2 -> 82.502 | J56: 49.501 | K56: 85.501 | L56: 拟推荐
A57: 55 | B57: 公管2201 | C57: 杨佳瑶 | D57: 困难 | E57: 70 | F57: 28 | G57: 79.972 | H57: 79.710 | I57: =(G57+H57)/2 -> 79.841 | J57: 47.905 | K57: 75.905
A58: 56 | B58: 公管2202 | C58: 朱赛贞 | D58: 困难 | E58: 70 | F58: =E58*0.4 -> 28 | G58: 82.880 | H58: 85.310 | I58: 84.090 | J58: 50.454 | K58: 78.454 | L58: 拟推荐
A59: 57 | B59: 公管2202 | C59: 欧阳鑫华 | D59: 困难 | E59: 70 | F59: =E59*0.4 -> 28 | G59: 81.894 | H59: 85.02 | I59: =(G59+H59)/2 -> 83.457 | J59: 50.074 | K59: 78.074 | L59: 拟推荐
A60: 58 | B60: 公管2202 | C60: 唐宇鸿 | D60: 困难 | E60: 70 | F60: =E60*0.4 -> 28 | G60: 81.303 | H60: 83.16 | I60: =(G60+H60)/2 -> 82.231 | J60: 49.339 | K60: 77.339
A61: 59 | B61: 文学2201 | C61: 陈悦 | D61: 困难 | E61: 70 | F61: =E61*0.4 -> 28 | G61: 81.092 | H61: 86.06 | I61: 83.576 | J61: 50.146 | K61: 78.146 | L61: 拟推荐
A62: 60 | B62: 文学2201 | C62: 周婷 | D62: 困难 | E62: 70 | F62: =E62*0.4 -> 28 | G62: 79.7 | H62: 84.26 | I62: 81.980 | J62: 49.188 | K62: 77.188 | L62: 拟推荐
A63: 61 | B63: 文学2202 | C63: 王丽丽 | D63: 特别困难 | E63: 90 | F63: 36 | G63: 80.110 | H63: 84.930 | I63: 82.520 | J63: 49.512 | K63: 85.510 | L63: 拟推荐
A64: 62 | B64: 文学2202 | C64: 肖萍萍 | D64: 特别困难 | E64: 90 | F64: 36 | G64: 80.391 | H64: 82.380 | I64: 81.356 | J64: 48.816 | K64: 84.816 | L64: 拟推荐
A65: 63 | B65: 音学2201 | C65: 涂马丽 | D65: 特别困难 | E65: 90 | F65: 36 | G65: 81.390 | H65: 81.930 | I65: 81.660 | J65: =I65*0.6 -> 48.996 | K65: =F65+J65 -> 84.996 | L65: 拟推荐
A66: 64 | B66: 音学2202 | C66: 徐瑞鸿 | D66: 特别困难 | E66: 90 | F66: 36 | G66: 81.372 | H66: 80.922 | I66: =AVERAGE(G66,H66) -> 81.147 | J66: 48.688 | K66: 84.690 | L66: 学习成绩未达到班级前30%，不推荐
A67: 65 | B67: 音学2202 | C67: 张媛媛 | D67: 特别困难 | E67: 90 | F67: 36 | G67: 79.076 | H67: 82.106 | I67: 80.591 | J67: 48.354 | K67: 84.350 | L67: 综合素质测评未达到班级前30%，不推荐
A68: 66 | B68: 音学2202 | C68: 杜行楷 | D68: 困难 | E68: 70 | F68: 28 | G68: 84.990 | H68: 83.154 | I68: 84.072 | J68: 50.443 | K68: 78.440 | L68: 拟推荐
A69: 67 | B69: 音学2202 | C69: 肖嘉祺 | D69: 困难 | E69: 70 | F69: 28 | G69: 84.056 | H69: 82.452 | I69: 83.254 | J69: 49.952 | K69: 77.950
A70: 备注：1.测评分计算公式为：国家励志奖学金测评分=∑学年两次综合测评平均分×60%+困难等级分×40%；2.申请者困难等级分由各班根据本学期困难生认定数据，按特别困难、贫困两个等级分别赋值90分、70分；3.存在两个以上相同分，则按照综测成绩排名优先原则。
